bitfinex/quotes_ETHUSD_20250215
["timestamp","ask_amount","ask_price","bid_price","bid_amount"]
[1739599887761,5.55e-06,2717.2,2717.1,17.0441308]
[1739599894401,5.55e-06,2717.2,2717.1,8.53042906]
[1739599894618,0.81850555,2717.2,2717.1,8.53042906]
[1739599894809,0.81850555,2717.2,2717.1,5.53042906]
[1739599895166,0.81850555,2717.2,2717.1,1.85003906]
[1739599895909,0.81850555,2717.2,2717.1,8.53042906]
[1739599896112,0.81850555,2717.2,2717.1,4.85003906]
[1739599896423,0.81850555,2717.2,2717.1,8.53042906]
[1739599907259,5.55e-06,2717.2,2717.1,9.31683362]
[1739599907564,5.55e-06,2717.2,2717.1,9.86683362]
[1739599910358,5.55e-06,2717.2,2717.1,10.65873362]
[1739599911542,5.55e-06,2717.2,2717.1,16.22062005]
[1739599912940,5.55e-06,2717.2,2717.1,17.57305911]
[1739599915441,0.7899,2718.4,2718.3,3.67872]
[1739599915637,0.7899,2718.4,2718.3,6.67872]
[1739599918375,0.7899,2718.4,2718.3,8.03115906]
[1739599918740,0.05394787,2718.8,2718.4,3.0]
[1739599918943,0.05394787,2718.8,2718.3,5.03115906]
[1739599921879,0.7899,2718.7,2718.3,5.03115906]
[1739599922082,1.82488079,2718.7,2718.3,5.03115906]
[1739599922376,1.03498079,2718.7,2718.3,5.03115906]
[1739599922584,0.7899,2718.6,2718.2,3.0]
[1739599923459,0.7899,2718.5,2718.2,3.0]
[1739599934585,0.7899,2718.5,2718.1,6.67895]
[1739599935007,0.7899,2718.5,2718.1,3.0]
[1739599936005,0.7826,2718.3,2717.8,3.67938]
[1739599936202,0.7826,2718.2,2717.6,3.67967]
[1739599936701,0.7826,2718.1,2717.7,3.0]
[1739599937068,0.7826,2718.1,2717.7,3.67956]
[1739599937273,0.7826,2718.1,2717.7,3.0]
[1739599937903,0.7826,2718.1,2717.7,6.67957]
[1739599938407,0.7826,2718.1,2717.7,3.0]
[1739599939809,0.7826,2718.1,2717.7,6.67955]
[1739599941374,0.7826,2718.1,2717.9,3.0]
[1739599941931,0.7826,2718.1,2717.6,6.67961]
[1739599942583,0.7826,2718.1,2717.5,1.35243906]
[1739599942788,0.7826,2718.1,2717.7,3.67947]
[1739599943712,0.7826,2718.1,2717.9,3.67931]
[1739599945247,0.7826,2718.1,2717.7,5.03190906]
[1739599945754,0.7826,2718.1,2717.7,5.03196906]
[1739599950362,0.7826,2718.1,2717.6,3.0]
[1739599951365,0.7826,2718.1,2717.6,6.67967]
[1739599953541,0.7826,2718.1,2717.6,6.67967]
[1739599954920,0.7826,2718.1,2717.7,3.67958]
[1739599955976,0.7826,2718.1,2717.6,3.0]
[1739599957343,0.7826,2718.1,2717.6,6.67964]
[1739599958764,0.7826,2718.1,2717.7,3.67957]
[1739599958968,0.7826,2718.1,2717.9,3.0]
[1739599961853,0.7826,2718.1,2717.6,3.0]
[1739599962162,0.7826,2718.1,2717.6,6.67969]
[1739599963048,1.596638,2718.1,2717.5,1.35243906]
[1739599963252,0.7836,2717.9,2717.3,5.03242906]
[1739599963453,0.7836,2717.9,2717.4,3.67998]
[1739599964031,0.7836,2717.9,2717.5,3.0]
[1739599964361,0.7836,2718.2,2717.7,3.0]
[1739599964567,4.46251,2718.2,2717.7,3.0]
[1739599964775,5.807648,2718.2,2717.7,3.0]
[1739599964940,3.67907,2718.1,2717.7,3.0]
[1739599965140,3.67907,2718.1,2717.5,2.14833906]
[1739599965342,7.35821,2718.1,2717.5,2.14833906]
[1739599965531,4.46279,2718.0,2717.5,2.14833906]
[1739599966176,4.46279,2718.0,2717.5,1.35243906]
[1739599966671,0.7836,2718.0,2717.5,1.35243906]
[1739599967236,0.7836,2718.0,2717.6,3.0]
[1739599970781,0.7836,2718.0,2717.6,6.67968]
[1739599975943,0.7836,2718.0,2717.8,3.67941]
[1739599976176,0.7648,2718.2,2717.9,3.67931]
[1739599977186,0.2488,2718.3,2718.2,3.7979]
[1739599978041,0.2488,2718.3,2718.2,3.0]
[1739599978237,0.2488,2718.3,2718.1,1.35243906]
[1739599978450,0.2488,2718.3,2718.0,3.0]
[1739599980053,0.8178,2718.2,2718.0,3.0]
[1739599980277,0.2488,2718.3,2718.0,3.0]
[1739599981378,0.2488,2718.3,2718.0,6.67917]
[1739599981911,0.2488,2718.3,2718.0,3.0]
[1739599983191,0.2488,2718.3,2718.0,3.67916]
[1739599983392,0.2488,2718.3,2717.9,1.35243906]
[1739599983589,1.091177,2718.3,2717.8,7.44124]
[1739599983895,0.8178,2718.2,2717.7,3.0]
[1739599984091,0.8178,2718.2,2717.6,3.0]
[1739599985419,3.67906,2718.1,2717.6,3.0]
[1739599987443,3.67906,2718.1,2717.6,6.67971]
[1739599987736,3.67906,2718.1,2717.6,3.0]
[1739599988426,0.8178,2718.2,2717.6,3.0]
[1739599988427,0.8178,2718.2,2717.6,6.6797]
[1739599988625,0.8178,2718.2,2717.6,7.92707791]
[1739599988827,0.8178,2718.2,2717.7,3.67957]
[1739599989227,0.8178,2718.2,2717.6,4.24737791]
[1739599989409,3.67904,2718.1,2717.6,3.0]
[1739599990275,4.49706,2718.0,2717.3,9.47440906]
[1739599991672,4.49706,2718.0,2717.4,3.0]
[1739599992830,4.49706,2718.0,2717.4,6.67997]
[1739599993566,4.49706,2718.0,2717.4,3.0]
[1739599993987,3.67931,2717.9,2717.4,3.0]
[1739599994282,3.67931,2717.9,2717.4,4.30243891]
[1739599995284,3.67946,2717.8,2717.4,4.30243891]
[1739599995502,4.45588,2717.7,2717.1,9.21069906]
[1739599995882,0.7763,2717.7,2717.2,6.68021]
[1739600002509,0.7763,2717.7,2717.2,3.0]
[1739600002717,4.45592,2717.7,2717.2,3.0]
[1739600003371,4.45592,2717.7,2717.2,3.93326391]
[1739600004601,4.45592,2717.7,2717.2,7.61351391]
[1739600006008,0.7763,2717.7,2717.2,7.61351391]
[1739600007711,0.7763,2717.7,2717.2,3.93326391]
[1739600007923,0.7763,2717.7,2717.2,7.61351391]
[1739600008309,0.7763,2717.7,2717.3,3.68012]
[1739600009989,0.7763,2717.7,2717.3,4.6264623]
[1739600011886,5.31,2718.1,2717.5,1.35243906]
[1739600012074,5.31,2718.1,2717.8,2.12133906]
[1739600012273,0.2488,2718.3,2718.1,3.0]
[1739600012500,0.2488,2718.3,2718.2,3.0]
[1739600012901,0.2488,2718.3,2718.2,6.6789]
[1739600013111,0.2488,2718.3,2718.2,9.83604606]
[1739600013619,0.2488,2718.3,2718.2,8.483607]
[1739600014946,0.2488,2718.3,2718.2,9.033607]
[1739600035683,0.2488,2718.3,2718.2,10.38449286]
[1739600047417,1e-05,2718.3,2718.2,17.11537872]
[1739600049376,5.827,2719.8,2719.5,3.67704]
[1739600049781,5.827,2719.8,2719.5,5.02792586]
[1739600051120,0.8005,2719.9,2719.5,5.02792586]
[1739600051615,0.8005,2719.9,2719.5,3.67704]
[1739600051972,0.8005,2719.9,2719.6,6.6769]
[1739600053567,0.8005,2719.9,2719.5,4.01383085]
[1739600054178,0.8005,2719.9,2719.3,2.78389855]
[1739600054493,0.8005,2719.9,2719.4,3.0]
[1739600054698,4.47712,2719.9,2719.4,3.0]
[1739600055113,0.8005,2719.9,2719.4,3.0]
[1739600055529,4.47713,2719.9,2719.4,3.0]
[1739600055681,0.8037,2719.8,2719.4,3.0]
[1739600057198,0.8037,2719.8,2719.2,3.0]
[1739600057199,4.48046,2719.8,2719.2,3.0]
[1739600057617,0.8037,2719.8,2719.2,3.0]
[1739600057826,0.8037,2719.8,2719.4,3.0]
[1739600058392,0.8037,2719.8,2719.2,3.0]
[1739600058608,4.48055,2719.8,2719.2,3.0]
[1739600058925,0.8037,2719.7,2719.2,3.0]
[1739600059432,4.48058,2719.7,2719.2,3.0]
[1739600061338,0.8037,2719.7,2719.2,6.67754]
[1739600061630,0.8037,2719.7,2719.2,8.12387186]
[1739600062727,0.8037,2719.7,2719.2,4.44633186]
[1739600064101,4.48059,2719.7,2719.2,4.44633186]
[1739600064308,4.48059,2719.7,2719.2,3.0]
[1739600065133,4.48075,2719.6,2719.0,7.22776]
[1739600065335,0.8037,2719.5,2719.0,7.22776]
[1739600066035,0.8037,2719.5,2719.0,3.0]
[1739600066240,3.6773,2719.4,2719.0,3.0]
[1739600066392,3.6773,2719.4,2718.7,3.67817]
[1739600066393,0.8011,2719.3,2718.7,3.67817]
[1739600067237,4.47853,2719.3,2718.7,3.67817]
[1739600068872,0.8011,2719.3,2718.8,6.67808]
[1739600069046,0.8011,2719.3,2719.0,3.0]
[1739600071619,0.8011,2719.3,2718.8,3.0]
[1739600071814,0.8011,2719.3,2718.8,6.67809]
[1739600072028,0.8011,2719.3,2719.0,3.0]
[1739600072233,0.8011,2719.3,2718.8,4.713715]
[1739600072616,0.8011,2719.3,2719.0,3.0]
[1739600075072,0.8011,2719.3,2718.8,4.713715]
[1739600075357,0.8011,2719.3,2718.8,4.713635]
[1739600075844,0.8011,2719.3,2718.8,8.391645]
[1739600076158,0.8011,2719.3,2719.0,3.0]
[1739600077247,0.8011,2719.3,2718.8,4.713635]
[1739600078372,0.7576,2719.0,2718.5,3.67845]
[1739600079239,0.7576,2719.0,2718.6,3.0]
[1739600079574,4.43543,2719.0,2718.6,3.0]
[1739600081168,0.7576,2719.0,2718.6,6.67832]
[1739600081372,0.7576,2719.0,2718.7,1.035677]
[1739600083383,4.43542,2719.0,2718.5,3.0]
[1739600083536,0.8276,2718.9,2718.5,3.0]
[1739600083881,0.8276,2718.4,2717.8,2.78389855]
[1739600084055,0.8276,2718.4,2717.8,5.03682443]
[1739600084257,4.50629,2718.4,2717.8,5.03682443]
[1739600084665,0.8276,2718.4,2717.8,5.03682443]
[1739600084870,0.8276,2718.4,2717.9,3.0]
[1739600086345,0.8276,2718.4,2718.1,3.0]
[1739600090362,4.50627,2718.4,2718.1,3.0]
[1739600092216,0.8276,2718.4,2718.1,3.0]
[1739600095321,0.8276,2718.4,2718.0,3.0]
[1739600096582,4.50625,2718.4,2718.0,3.0]
[1739600097022,4.50625,2718.4,2717.8,4.35750443]
[1739600097733,4.50625,2718.4,2717.8,8.03693443]
[1739600097930,0.8276,2718.4,2718.0,3.0]
[1739600098225,0.8276,2718.4,2718.0,6.67917]
[1739600099144,0.8276,2718.4,2718.0,3.0]
[1739600100248,4.50626,2718.4,2718.0,3.0]
[1739600100438,4.50626,2718.4,2717.9,0.80369844]
[1739600100641,3.67866,2718.4,2717.9,0.80369844]
[1739600100848,0.7746,2718.3,2717.9,0.80369844]
[1739600101351,0.7746,2718.0,2717.3,5.4259923]
[1739600101643,0.7746,2718.0,2717.6,3.67962]
[1739600101827,0.7746,2718.0,2717.7,3.0]
[1739600102193,0.7746,2718.0,2717.4,0.55]
[1739600102395,0.7746,2717.9,2717.4,6.67989]
[1739600102600,0.7746,2717.9,2717.5,0.76262323]
[1739600102822,0.7746,2717.9,2717.3,0.9463423]
[1739600103043,0.7746,2717.8,2717.3,0.9463423]
[1739600103301,0.7746,2717.8,2717.4,3.67997]
[1739600104217,0.7746,2717.8,2717.3,0.9463423]
[1739600104820,0.7746,2717.8,2717.4,3.0]
[1739600105551,0.7746,2717.8,2717.3,7.6264023]
[1739600106052,0.7746,2717.8,2717.4,3.67989]
[1739600106265,0.7746,2717.8,2717.7,3.0]
[1739600106746,0.7746,2717.8,2717.6,3.0]
[1739600107733,0.7746,2717.8,2717.6,6.67971]
[1739600108050,0.7746,2717.8,2717.6,3.0]
[1739600108257,0.7746,2717.8,2717.6,3.86101552]
[1739600109644,0.7746,2717.8,2717.6,7.54069552]
[1739600109818,4.45352,2718.2,2717.6,7.54060552]
[1739600110954,0.7746,2718.2,2717.6,7.54060552]
[1739600111665,3.67905,2718.1,2717.6,3.86101552]
[1739600113280,0.7546,2718.0,2717.6,3.86101552]
[1739600113478,3.67934,2717.9,2717.4,1.13066523]
[1739600113666,4.43405,2717.8,2717.3,3.9463423]
[1739600114101,0.7546,2717.7,2717.2,3.0]
[1739600114393,4.43428,2717.7,2717.2,3.0]
[1739600114749,0.7546,2717.7,2717.2,6.68018]
[1739600115279,4.43419,2717.7,2717.2,3.0]
[1739600115587,4.43419,2717.7,2717.1,2.30651438]
[1739600115886,4.43419,2717.7,2717.1,3.26606967]
[1739600116386,4.43419,2717.7,2717.2,3.0]
[1739600119088,0.7546,2717.7,2717.2,6.68017]
[1739600119788,0.7546,2717.7,2717.3,3.68004]
[1739600120991,0.7546,2717.7,2717.2,3.0]
[1739600121695,0.7546,2717.7,2717.2,6.68023]
[1739600121857,0.7546,2717.7,2717.2,8.04290597]
[1739600122697,0.7546,2717.7,2717.2,8.04284597]
[1739600123189,0.7546,2717.7,2717.3,4.50471]
[1739600123375,0.7546,2717.7,2717.5,3.67973]
[1739600123580,0.7546,2717.9,2717.6,3.0]
[1739600124570,0.7546,2717.9,2717.6,6.6797]
[1739600124797,0.7546,2717.9,2717.6,3.0]
[1739600125096,5.31,2718.0,2717.7,3.67949]
[1739600125343,5.31,2718.0,2717.7,4.50419]
[1739600125465,0.7546,2718.1,2717.7,4.50419]
[1739600126883,0.7546,2718.1,2717.7,0.8247]
[1739600127090,0.7546,2718.1,2717.6,3.667973]
[1739600127880,4.43366,2718.1,2717.6,3.667973]
[1739600128899,3.67922,2718.0,2717.6,0.667973]
[1739600129119,3.67922,2718.0,2717.4,6.67998]
[1739600129661,0.7546,2718.1,2717.6,3.0]
[1739600129861,4.43364,2718.1,2717.6,3.0]
[1739600131002,0.7546,2718.1,2717.6,3.0]
[1739600131207,0.7546,2718.1,2717.7,1.87025213]
[1739600131380,1.0778,2718.3,2717.7,1.833459]
[1739600131580,1.0778,2718.3,2717.7,5.512939]
[1739600131780,1.0778,2718.3,2717.7,9.192429]
[1739600132105,1.0778,2718.3,2717.7,5.512939]
[1739600132406,0.8188,2718.5,2717.9,3.0]
[1739600132576,0.8188,2718.5,2718.0,3.67907]
[1739600133720,0.8188,2718.5,2718.1,3.71581886]
[1739600134010,1.32641773,2718.6,2718.4,3.0]
[1739600135417,1.32641773,2718.6,2718.1,3.0]
[1739600135578,0.8188,2718.5,2718.1,3.0]
[1739600139520,4.49739,2718.5,2718.1,3.0]
[1739600139707,4.49739,2718.5,2718.0,3.0]
[1739600143613,8.176,2718.5,2718.0,3.0]
[1739600145026,2.30004177,2718.5,2717.8,0.7975]
[1739600145181,0.8222,2718.2,2717.7,3.0]
[1739600145585,0.8222,2718.2,2717.7,6.67951]
[1739600147126,0.8222,2718.2,2718.0,3.0]
[1739600148831,0.8222,2718.2,2717.9,3.0]
[1739600152366,0.771,2718.4,2718.0,6.67906]
[1739600154078,0.771,2718.4,2718.0,10.35814]
[1739600154286,0.771,2718.4,2718.0,6.67906]
[1739600155996,5.26379773,2718.6,2718.0,6.67906]
[1739600155997,2.13221773,2718.6,2718.2,3.67882]
[1739600156894,2.13221773,2718.6,2718.4,3.0]
[1739600157194,1.32641773,2718.6,2718.4,3.0]
[1739600158514,1.32641773,2718.6,2718.3,6.67874]
[1739600160694,0.8058,2719.0,2718.4,0.7585]
[1739600160881,0.8058,2719.0,2718.6,3.0]
[1739600161054,0.259,2719.2,2718.6,3.0]
[1739600161055,9.24648,2719.3,2718.8,3.0]
[1739600161256,0.8058,2719.2,2718.8,3.0]
[1739600162162,4.48337,2719.2,2718.8,3.0]
[1739600162368,6.439155,2719.2,2718.8,3.0]
[1739600162983,2.761585,2719.2,2718.8,3.0]
[1739600163788,6.439165,2719.2,2718.8,3.0]
[1739600165254,4.48338,2719.2,2718.8,3.0]
[1739600165455,0.8058,2719.2,2718.8,3.0]
[1739600165755,9.24648,2719.3,2718.8,3.7585]
[1739600168217,5.31,2719.3,2718.9,3.67787]
[1739600168596,0.807,2719.7,2719.1,4.46266]
[1739600168916,0.807,2719.7,2719.1,8.8902037]
[1739600169121,0.807,2719.7,2719.1,5.2126037]
[1739600169620,0.807,2719.7,2719.3,6.67732]
[1739600169926,1.066,2719.9,2719.3,6.67732]
[1739600170214,1.066,2719.9,2719.3,7.86999671]
[1739600170416,5.47894547,2719.9,2719.3,7.86999671]
[1739600170631,0.807,2719.9,2719.4,3.67728]
[1739600170919,0.807,2719.9,2719.4,0.7742]
[1739600171989,0.807,2719.9,2719.4,4.45139]
[1739600172311,0.807,2719.9,2719.5,1.23213667]
[1739600174918,0.8185,2720.1,2719.5,4.90925667]
[1739600176033,7.15270279,2720.2,2719.8,3.7742]
[1739600177101,10.82898279,2720.2,2719.8,3.7742]
[1739600177301,10.82898279,2720.2,2719.8,4.15162]
[1739600177801,3.67639,2720.1,2719.8,3.7742]
[1739600178538,7.15270279,2720.2,2719.8,3.7742]
[1739600180106,7.15270279,2720.2,2719.8,7.45094]
[1739600180812,5.827,2720.2,2719.8,7.45094]
[1739600181014,5.827,2720.2,2720.0,4.45064]
[1739600181239,5.827,2720.2,2720.1,0.44874044]
[1739600187338,3.67571,2720.6,2720.1,0.44874044]
[1739600187713,3.67571,2720.6,2720.1,3.44874044]
[1739600187914,3.67571,2720.6,2720.1,7.12507044]
[1739600188139,4.49389,2720.8,2720.1,7.12507044]
[1739600188341,3.67557,2720.7,2720.2,1.15756304]
[1739600189062,4.49389,2720.8,2720.3,0.8209]
[1739600189268,11.10919747,2721.0,2720.4,3.67588]
[1739600190646,11.10919747,2721.0,2720.5,3.67578]
[1739600190963,7.43404747,2721.0,2720.6,0.735166]
[1739600191122,7.43404747,2721.0,2720.6,1.556066]
[1739600191470,6.63534747,2721.0,2720.6,1.556066]
[1739600192125,10.31047747,2721.0,2720.6,1.556066]
[1739600192779,6.63534747,2721.0,2720.6,5.231706]
[1739600192940,6.63534747,2721.0,2720.7,0.8907376]
[1739600193143,1.32534747,2721.0,2720.7,0.8907376]
[1739600194560,4.4736,2721.2,2720.7,0.8907376]
[1739600194762,3.67501,2721.1,2720.7,0.8907376]
[1739600194958,3.67512,2721.0,2720.7,0.8907376]
[1739600195266,3.67512,2721.0,2720.6,0.8209]
[1739600195769,8.14855,2721.2,2720.6,0.8209]
[1739600196330,3.675,2721.1,2720.6,0.8209]
[1739600197870,3.67515,2721.0,2720.6,0.8209]
[1739600200935,4.4736,2721.2,2720.6,0.8209]
[1739600201181,4.4736,2721.2,2720.7,3.38209]
[1739600201182,3.67514,2721.0,2720.7,3.38209]
[1739600202351,3.67514,2721.0,2720.7,0.38209]
[1739600202535,3.67514,2721.0,2720.6,0.8209]
[1739600202740,4.48531,2720.8,2720.1,4.12506044]
[1739600203178,4.48531,2720.8,2720.2,3.0]
[1739600203878,4.48531,2720.8,2720.1,4.12506044]
[1739600203879,4.48531,2720.8,2720.1,0.44874044]
[1739600204089,4.48531,2720.8,2720.2,3.67618]
[1739600204689,0.8099,2720.8,2720.3,3.67606]
[1739600205987,0.8099,2720.8,2720.4,0.8211]
[1739600208225,0.8099,2720.8,2720.4,0.8211]
[1739600208822,0.8099,2720.8,2720.4,3.8211]
[1739600210504,4.4853,2720.8,2720.2,3.0]
[1739600210934,4.4853,2720.8,2720.2,6.67619]
[1739600213315,0.8099,2720.8,2720.4,3.0]
[1739600213518,0.8099,2720.8,2720.2,3.67619]
[1739600213719,0.8099,2720.8,2720.2,7.35229]
[1739600214047,4.4853,2720.8,2720.2,3.6761]
[1739600217049,0.8099,2720.8,2720.3,3.67603]
[1739600217264,0.8099,2720.8,2720.4,3.0]
[1739600217441,4.48529,2720.8,2720.2,3.6761]
[1739600219261,4.48529,2720.8,2720.2,7.35219]
[1739600219421,4.48529,2720.8,2720.4,3.0]
[1739600219621,0.8099,2720.8,2720.4,3.0]
[1739600220236,0.8099,2720.8,2720.5,3.0]
[1739600220437,0.8099,2720.8,2720.2,8.02516331]
[1739600220772,0.8099,2720.8,2720.5,3.0]
[1739600222152,4.48533,2720.8,2720.5,3.0]
[1739600222332,4.48533,2720.8,2720.2,11.70125331]
[1739600222528,0.8099,2720.8,2720.3,3.67603]
[1739600226072,0.8099,2720.8,2720.2,8.02516331]
[1739600226275,0.8099,2720.8,2720.3,3.67604]
[1739600227655,0.8099,2720.8,2720.4,3.0]
[1739600229285,4.48531,2720.8,2720.4,3.0]
[1739600229914,0.8099,2720.8,2720.4,3.0]
[1739600237454,3.67597,2720.4,2719.9,0.7573]
[1739600237760,5.49743497,2721.1,2719.8,5.38]
[1739600237761,3.67606,2720.3,2719.8,5.38]
[1739600237918,0.8017,2720.2,2719.8,5.38]
[1739600238118,0.8017,2720.2,2719.8,3.0]
[1739600239466,0.8017,2720.5,2719.9,0.0367642]
[1739600239664,1.0607,2720.5,2720.0,8.02542331]
[1739600239959,1.0607,2720.5,2720.1,6.67633]
[1739600240164,1.0607,2720.5,2720.0,4.34907331]
[1739600240360,5.307023,2720.5,2720.0,3.0]
[1739600240672,0.8017,2720.2,2719.7,3.0]
[1739600241345,0.8017,2720.2,2719.7,6.67687]
[1739600241664,0.8017,2720.2,2719.7,6.67686]
[1739600241821,0.8017,2720.2,2719.8,5.02581331]
[1739600242049,0.8017,2720.2,2719.9,3.0]
[1739600242343,4.73652,2720.5,2719.9,8.23647133]
[1739600242548,4.73652,2720.5,2719.9,3.7573]
[1739600242748,3.67607,2720.3,2719.7,3.0]
[1739600244096,0.8017,2720.2,2719.7,3.0]
[1739600245088,0.8017,2720.2,2719.6,1.34907331]
[1739600245298,0.8017,2720.2,2719.7,3.67684]
[1739600246898,0.8017,2720.2,2719.6,3.0]
[1739600247253,3.67635,2720.1,2719.6,3.0]
[1739600249488,3.67635,2720.1,2719.5,3.0]
[1739600249709,3.67635,2720.1,2719.5,6.67712]
[1739600250192,0.8221,2720.0,2719.4,3.67722]
[1739600250789,3.67661,2719.9,2719.3,3.0]
[1739600250990,0.8221,2719.8,2719.3,3.0]
[1739600251906,3.67688,2719.7,2719.3,3.0]
[1739600252400,0.8221,2719.8,2719.3,3.0]
[1739600253584,4.49886,2719.8,2719.3,3.0]
[1739600255901,4.49886,2719.8,2719.1,3.8213]
[1739600256205,0.8221,2719.7,2719.1,3.8213]
[1739600256983,0.8221,2719.7,2719.1,7.49889]
[1739600257473,0.8221,2719.7,2719.2,3.67751]
[1739600258512,4.499,2719.7,2719.1,3.0]
[1739600259018,4.499,2719.7,2719.1,6.67766]
[1739600267329,4.499,2719.7,2719.1,3.0]
[1739600268538,4.499,2719.7,2719.1,6.67763]
[1739600269033,0.8221,2719.7,2719.1,3.0]
[1739600269250,0.8221,2719.7,2719.2,3.67755]
[1739600269895,0.8221,2719.7,2719.4,3.0]
[1739600272003,6.1051,2720.0,2719.4,8.83442331]
[1739600272210,6.1051,2720.0,2719.6,3.677]
[1739600272998,6.1051,2720.0,2719.4,8.83442331]
[1739600273297,6.1051,2720.0,2719.4,12.51158331]
[1739600273841,6.1051,2720.0,2719.4,8.83433331]
[1739600274041,6.1051,2720.0,2719.5,3.67714]
[1739600275396,6.1051,2720.0,2719.6,3.67691]
[1739600275594,6.1051,2720.0,2719.6,5.90939164]
[1739600275793,6.1051,2720.0,2719.8,3.0]
[1739600275995,0.7951,2720.0,2719.8,3.0]
[1739600279900,0.7951,2720.0,2719.5,3.0]
[1739600280132,0.7951,2720.0,2719.5,6.67711]
[1739600280340,0.7951,2720.0,2719.6,1.25114533]
[1739600280727,4.47159,2720.0,2719.5,3.0]
[1739600281727,3.67669,2719.9,2719.3,3.0]
[1739600281937,4.50685,2719.8,2719.3,3.0]
[1739600283252,0.8301,2719.8,2719.3,6.67739]
[1739600283475,0.8301,2719.8,2719.5,3.0]
[1739600283963,0.8301,2720.0,2719.7,3.0]
[1739600284524,5.31,2720.1,2719.7,4.48185]
[1739600284731,5.31,2720.1,2719.8,3.0]
[1739600285678,5.31,2720.1,2719.5,3.67705]
[1739600285834,0.8301,2720.0,2719.5,3.67705]
[1739600286775,0.8301,2720.0,2719.5,7.91003373]
[1739600287148,0.8301,2720.0,2719.5,11.58709373]
[1739600287479,0.8301,2720.0,2719.5,7.91003373]
[1739600288286,0.8301,2720.0,2719.5,7.91002373]
[1739600288880,0.8301,2720.0,2719.6,3.677]
[1739600289065,0.8301,2720.0,2719.7,3.0]
[1739600289476,0.8301,2720.0,2719.7,3.6768]
[1739600289659,4.50621,2720.3,2719.8,3.0]
[1739600289863,3.67629,2720.2,2719.6,1.34907331]
[1739600290591,3.67622,2720.2,2719.7,3.0]
[1739600292419,3.67622,2720.2,2719.6,1.34907331]
[1739600292590,3.67622,2720.2,2719.7,3.67686]
[1739600293629,0.8128,2720.5,2720.0,1.34907331]
[1739600293925,0.8128,2720.5,2720.1,3.0]
[1739600294697,0.8128,2720.5,2719.9,6.6766]
[1739600296633,0.8128,2720.5,2720.1,3.0]
[1739600297399,0.8128,2720.5,2720.1,3.67632]
[1739600297714,0.8128,2720.5,2720.1,7.47885933]
[1739600298634,3.67593,2720.4,2720.1,3.0]
[1739600299134,0.8128,2720.5,2720.1,3.0]
[1739600299891,0.8128,2720.5,2720.1,6.67624]
[1739600300293,0.8128,2720.5,2720.1,3.0]
[1739600302145,4.48861,2720.5,2720.1,3.0]
[1739600305133,3.67593,2720.4,2720.1,3.0]
[1739600307635,0.8128,2720.5,2720.1,3.0]
[1739600308929,0.8128,2720.5,2720.1,7.43993]
[1739600309112,0.8128,2720.5,2720.1,3.7636]
[1739600309301,4.50105,2720.8,2720.1,5.01016933]
[1739600309507,3.67566,2720.6,2720.1,3.7636]
[1739600310549,3.67566,2720.6,2720.1,7.43988]
[1739600310750,4.50105,2720.8,2720.3,3.0]
[1739600310909,3.67552,2720.7,2720.3,3.0]
[1739600311112,3.67552,2720.7,2720.1,3.7636]
[1739600312020,3.67552,2720.7,2720.1,7.43985]
[1739600312219,3.67556,2720.7,2720.1,7.43985]
[1739600313042,3.67556,2720.7,2720.1,3.7636]
[1739600313246,3.67573,2720.6,2720.1,3.7636]
[1739600316734,4.50105,2720.8,2720.1,7.43993]
[1739600316939,3.67556,2720.7,2720.1,7.43993]
[1739600317773,3.67556,2720.7,2720.1,3.7636]
[1739600317932,3.67556,2720.7,2720.1,7.43992]
[1739600318138,3.67556,2720.7,2720.1,3.7636]
[1739600318634,4.50105,2720.8,2720.1,3.7636]
[1739600318837,3.67571,2720.6,2720.1,7.43991]
[1739600320072,3.67552,2720.7,2720.1,7.43991]
[1739600320271,5.85845891,2720.8,2720.3,3.0]
[1739600320567,3.67558,2720.7,2720.4,0.7636]
[1739600321276,3.67569,2720.6,2720.4,0.7636]
[1739600321471,3.67567,2720.6,2720.4,0.7636]
[1739600321678,3.67567,2720.6,2720.2,0.7636]
[1739600321836,7.35123,2720.7,2720.2,0.7636]
[1739600322448,3.67558,2720.7,2720.2,0.7636]
[1739600322748,5.00058307,2720.9,2720.3,6.67605]
[1739600324376,3.67553,2720.7,2720.3,3.0]
[1739600325542,5.00058307,2720.9,2720.3,6.67605]
[1739600325895,3.67539,2720.8,2720.3,6.67605]
[1739600326274,3.67539,2720.8,2720.3,3.0]
[1739600326462,5.00058307,2720.9,2720.3,3.0]
[1739600326759,5.00058307,2720.9,2720.3,6.67605]
[1739600327352,5.00058307,2720.9,2720.3,3.0]
[1739600327687,3.67546,2720.8,2720.3,3.0]
[1739600328283,1.32527307,2720.9,2720.3,4.33440296]
[1739600328491,5.00055307,2720.9,2720.4,3.0]
[1739600329387,5.00055307,2720.9,2720.5,0.8165]
[1739600329689,1.32527307,2720.9,2720.5,0.8165]
[1739600329895,5.00060307,2720.9,2720.5,0.8165]
[1739600330254,3.67543,2720.8,2720.5,0.8165]
[1739600330452,8.67596307,2720.9,2720.5,0.8165]
[1739600330678,5.00060307,2720.9,2720.5,0.8165]
[1739600330904,5.00063307,2720.9,2720.5,0.8165]
[1739600331101,8.67598307,2720.9,2720.5,0.8165]
[1739600331270,5.00062307,2720.9,2720.5,0.8165]
[1739600332195,3.67545,2720.8,2720.5,0.8165]
[1739600335790,5.00053307,2720.9,2720.5,0.8165]